[Event "Live Chess"]
[Site "Chess.com"]
[Date "2023.05.21"]
[Round "-"]
[White "Crowded_House"]
[Black "Mugzwang"]
[Result "1-0"]
[WhiteElo "1671"]
[BlackElo "1565"]
[TimeControl "300"]
[EndTime "0:51:15 PDT"]
[Termination "Crowded_House won on time"]

1. d4 {[%clk 0:04:59]} 1... d5 {[%clk 0:04:58.2]} 2. Bg5 {[%clk 0:04:57.7]} 2...
h6 {[%clk 0:04:47.7]} 3. Bh4 {[%clk 0:04:56]} 3... Nd7 {[%clk 0:04:44.1]} 4. Nf3
{[%clk 0:04:52.3]} 4... Ngf6 {[%clk 0:04:43]} 5. Nbd2 {[%clk 0:04:49]} 5... e6
{[%clk 0:04:41.3]} 6. e3 {[%clk 0:04:48]} 6... Be7 {[%clk 0:04:40.7]} 7. Bd3
{[%clk 0:04:47.3]} 7... c5 {[%clk 0:04:35.5]} 8. c3 {[%clk 0:04:45.5]} 8... Qb6
{[%clk 0:04:28.9]} 9. Qb3 {[%clk 0:04:40.8]} 9... c4 {[%clk 0:04:19.9]} 10. Qxb6
{[%clk 0:04:39.2]} 10... Nxb6 {[%clk 0:04:18.1]} 11. Bc2 {[%clk 0:04:36.8]}
11... Bd7 {[%clk 0:04:15.8]} 12. O-O {[%clk 0:04:35.2]} 12... Ba4 {[%clk
0:04:14.2]} 13. Rac1 {[%clk 0:04:21.4]} 13... Bxc2 {[%clk 0:04:11.4]} 14. Rxc2
{[%clk 0:04:19.5]} 14... Na4 {[%clk 0:04:11]} 15. Nb1 {[%clk 0:04:03]} 15... g5
{[%clk 0:03:55.2]} 16. Bg3 {[%clk 0:04:00.7]} 16... Ne4 {[%clk 0:03:54.9]} 17.
Nfd2 {[%clk 0:03:48.9]} 17... Nxg3 {[%clk 0:03:53.1]} 18. hxg3 {[%clk
0:03:47.3]} 18... h5 {[%clk 0:03:48.9]} 19. b3 {[%clk 0:03:37.5]} 19... cxb3
{[%clk 0:03:40.9]} 20. axb3 {[%clk 0:03:29.6]} 20... Nb6 {[%clk 0:03:37]} 21. c4
{[%clk 0:03:27.4]} 21... Rc8 {[%clk 0:03:31.1]} 22. Rfc1 {[%clk 0:03:26.2]}
22... dxc4 {[%clk 0:03:23]} 23. Nxc4 {[%clk 0:03:20]} 23... Nd5 {[%clk
0:03:03.1]} 24. Ne5 {[%clk 0:03:07.9]} 24... Rxc2 {[%clk 0:02:45.4]} 25. Rxc2
{[%clk 0:03:06.2]} 25... O-O {[%clk 0:02:28.7]} 26. Nd2 {[%clk 0:02:47.9]} 26...
Bd6 {[%clk 0:01:52.3]} 27. Ndc4 {[%clk 0:02:42]} 27... Bxe5 {[%clk 0:01:39.2]}
28. Nxe5 {[%clk 0:02:40]} 28... Kg7 {[%clk 0:01:19.8]} 29. Rc5 {[%clk
0:02:31.9]} 29... f6 {[%clk 0:01:03]} 30. Nd3 {[%clk 0:02:25.5]} 30... Rf7
{[%clk 0:00:54.8]} 31. Kf1 {[%clk 0:02:24.4]} 31... Rc7 {[%clk 0:00:53.3]} 32.
Rxc7+ {[%clk 0:02:22.7]} 32... Nxc7 {[%clk 0:00:52.1]} 33. Nc5 {[%clk
0:02:21.9]} 33... b6 {[%clk 0:00:49.1]} 34. Ne4 {[%clk 0:02:12.9]} 34... Nb5
{[%clk 0:00:35.6]} 35. Ke2 {[%clk 0:02:02.8]} 35... f5 {[%clk 0:00:34.6]} 36.
Nxg5 {[%clk 0:01:56.9]} 36... Kf6 {[%clk 0:00:32.2]} 37. Nf3 {[%clk 0:01:51.4]}
37... Nc3+ {[%clk 0:00:30.1]} 38. Kd2 {[%clk 0:01:46.5]} 38... Ne4+ {[%clk
0:00:29.1]} 39. Ke1 {[%clk 0:01:39.6]} 39... Nc3 {[%clk 0:00:20.3]} 40. Ne5
{[%clk 0:01:34.7]} 40... Ne4 {[%clk 0:00:18.8]} 41. Nc6 {[%clk 0:01:29.4]} 41...
a6 {[%clk 0:00:17.1]} 42. Nb8 {[%clk 0:01:27.8]} 42... a5 {[%clk 0:00:16.2]} 43.
Nd7+ {[%clk 0:01:25.4]} 43... Ke7 {[%clk 0:00:13.3]} 44. Nxb6 {[%clk 0:01:24]}
44... Nd6 {[%clk 0:00:12.3]} 45. Na4 {[%clk 0:01:16.6]} 45... Nb5 {[%clk
0:00:10.6]} 46. Nc5 {[%clk 0:01:13.5]} 46... Nc3 {[%clk 0:00:09.3]} 47. f3
{[%clk 0:01:08.9]} 47... Na2 {[%clk 0:00:06.3]} 48. Kd2 {[%clk 0:01:03.2]} 48...
Nb4 {[%clk 0:00:05]} 49. Nb7 {[%clk 0:00:58.7]} 49... a4 {[%clk 0:00:01.9]} 50.
bxa4 {[%clk 0:00:57]} 50... Nc6 {[%clk 0:00:01.5]} 51. a5 {[%clk 0:00:55.5]} 1-0

[Event "Live Chess"]
[Site "Chess.com"]
[Date "2023.05.21"]
[Round "-"]
[White "EdenHazard8"]
[Black "EPotapov05"]
[Result "1-0"]
[WhiteElo "1960"]
[BlackElo "1394"]
[TimeControl "300"]
[EndTime "0:51:19 PDT"]
[Termination "EdenHazard8 won by resignation"]

1. e4 {[%clk 0:04:58.2]} 1... e6 {[%clk 0:04:53.6]} 2. d4 {[%clk 0:04:56.8]}
2... d5 {[%clk 0:04:50.3]} 3. exd5 {[%clk 0:04:56.7]} 3... exd5 {[%clk
0:04:48.9]} 4. Bd3 {[%clk 0:04:54.6]} 4... Nf6 {[%clk 0:04:45]} 5. Nf3 {[%clk
0:04:52.7]} 5... Bd6 {[%clk 0:04:41]} 6. h3 {[%clk 0:04:51.3]} 6... h6 {[%clk
0:04:36.1]} 7. O-O {[%clk 0:04:49]} 7... O-O {[%clk 0:04:34.5]} 8. c3 {[%clk
0:04:48.1]} 8... c6 {[%clk 0:04:32.5]} 9. Re1 {[%clk 0:04:46.2]} 9... Re8 {[%clk
0:04:30.3]} 10. Ne5 {[%clk 0:04:43.8]} 10... Nbd7 {[%clk 0:04:23.9]} 11. f4
{[%clk 0:04:42.1]} 11... Nf8 {[%clk 0:04:19.4]} 12. Nd2 {[%clk 0:04:35.4]} 12...
Qc7 {[%clk 0:04:17.4]} 13. Ndf3 {[%clk 0:04:33.3]} 13... Be6 {[%clk 0:04:07.3]}
14. Nh4 {[%clk 0:04:13.5]} 14... c5 {[%clk 0:03:59.6]} 15. Nf5 {[%clk
0:04:10.6]} 15... Bxf5 {[%clk 0:03:50.6]} 16. Bxf5 {[%clk 0:04:10.5]} 16... cxd4
{[%clk 0:03:46.7]} 17. cxd4 {[%clk 0:04:06.1]} 17... Qb6 {[%clk 0:03:30.5]} 18.
Be3 {[%clk 0:04:03.9]} 18... Rab8 {[%clk 0:03:23.3]} 19. Bc2 {[%clk 0:03:55.8]}
19... Qxb2 {[%clk 0:03:09.2]} 20. Qd3 {[%clk 0:03:52]} 20... Qa3 {[%clk
0:03:04.9]} 21. Bb3 {[%clk 0:03:47.4]} 21... a5 {[%clk 0:02:50.2]} 22. Qc2
{[%clk 0:03:37.6]} 22... b5 {[%clk 0:02:36.3]} 23. Qe2 {[%clk 0:03:20.2]} 23...
a4 {[%clk 0:02:26.8]} 24. Bc2 {[%clk 0:03:18]} 24... Rec8 {[%clk 0:02:16.1]} 25.
Red1 {[%clk 0:03:15.7]} 25... Qb4 {[%clk 0:01:51.5]} 26. Rab1 {[%clk 0:03:02.7]}
26... Qa5 {[%clk 0:01:50.4]} 27. Bd2 {[%clk 0:03:01.3]} 27... b4 {[%clk
0:01:47.9]} 28. Bf5 {[%clk 0:02:56.3]} 28... Rc7 {[%clk 0:01:34.6]} 29. a3
{[%clk 0:02:54.8]} 29... Qb6 {[%clk 0:01:23.9]} 30. axb4 {[%clk 0:02:51.4]}
30... Qxd4+ {[%clk 0:01:22.5]} 31. Be3 {[%clk 0:02:50.3]} 31... Qc3 {[%clk
0:01:07.2]} 32. Rdc1 {[%clk 0:02:45.3]} 32... Qa3 {[%clk 0:00:59.3]} 33. Nc6
{[%clk 0:02:42.9]} 33... Bxb4 {[%clk 0:00:47.1]} 34. Nxb8 {[%clk 0:02:39.1]}
34... Rxc1+ {[%clk 0:00:38.2]} 35. Bxc1 {[%clk 0:02:39]} 35... Bc5+ {[%clk
0:00:29.9]} 36. Kh1 {[%clk 0:02:35.7]} 36... Qc3 {[%clk 0:00:27.7]} 37. Bb2
{[%clk 0:02:33.1]} 1-0

[Event "Live Chess"]
[Site "Chess.com"]
[Date "2023.05.21"]
[Round "-"]
[White "Ferrarifan27"]
[Black "raimundklein"]
[Result "1-0"]
[WhiteElo "2074"]
[BlackElo "1732"]
[TimeControl "300"]
[EndTime "0:51:33 PDT"]
[Termination "Ferrarifan27 won on time"]

1. e4 {[%clk 0:04:54]} 1... c6 {[%clk 0:04:58.4]} 2. d4 {[%clk 0:04:50.1]} 2...
d5 {[%clk 0:04:57.6]} 3. e5 {[%clk 0:04:47.7]} 3... Bf5 {[%clk 0:04:55.9]} 4. h4
{[%clk 0:04:46]} 4... h5 {[%clk 0:04:33.9]} 5. Bg5 {[%clk 0:04:43.5]} 5... Qa5+
{[%clk 0:04:30.3]} 6. Bd2 {[%clk 0:04:36.7]} 6... Qb6 {[%clk 0:04:29.2]} 7. Bc3
{[%clk 0:04:35.7]} 7... e6 {[%clk 0:04:27.4]} 8. Bd3 {[%clk 0:04:33.3]} 8...
Bxd3 {[%clk 0:04:25.2]} 9. Qxd3 {[%clk 0:04:33.2]} 9... Ne7 {[%clk 0:04:17.4]}
10. Nf3 {[%clk 0:04:31]} 10... Nf5 {[%clk 0:04:14.9]} 11. Nbd2 {[%clk
0:04:27.6]} 11... Qa6 {[%clk 0:03:57.9]} 12. Qxa6 {[%clk 0:04:19.2]} 12... Nxa6
{[%clk 0:03:57.8]} 13. O-O-O {[%clk 0:04:12.8]} 13... Be7 {[%clk 0:03:43.5]} 14.
g3 {[%clk 0:04:08.4]} 14... O-O {[%clk 0:03:40.8]} 15. Nb3 {[%clk 0:04:03.6]}
15... b6 {[%clk 0:03:37.1]} 16. Rdg1 {[%clk 0:03:55.6]} 16... c5 {[%clk
0:03:33.4]} 17. g4 {[%clk 0:03:53.7]} 17... hxg4 {[%clk 0:03:31.5]} 18. Rxg4
{[%clk 0:03:52.6]} 18... Nb4 {[%clk 0:02:32.7]} 19. Bxb4 {[%clk 0:03:45.6]}
19... cxb4 {[%clk 0:02:31.1]} 20. h5 {[%clk 0:03:32.8]} 20... Kh7 {[%clk
0:02:19.6]} 21. Ng5+ {[%clk 0:03:28.6]} 21... Bxg5+ {[%clk 0:02:17.3]} 22. Rxg5
{[%clk 0:03:28.5]} 22... Rac8 {[%clk 0:02:12.3]} 23. Rhg1 {[%clk 0:03:19.8]}
23... Rc4 {[%clk 0:02:07.7]} 24. f4 {[%clk 0:03:08.1]} 24... Rfc8 {[%clk
0:02:05.7]} 25. R1g2 {[%clk 0:03:05.8]} 25... a5 {[%clk 0:01:57.4]} 26. Na1
{[%clk 0:03:01.9]} 26... Rxd4 {[%clk 0:01:51.6]} 27. R5g4 {[%clk 0:02:56.3]}
27... Rcc4 {[%clk 0:01:45.2]} 28. b3 {[%clk 0:02:51]} 28... Rc3 {[%clk
0:01:43.2]} 29. Kb2 {[%clk 0:02:41.6]} 29... Rf3 {[%clk 0:01:36.9]} 30. a3
{[%clk 0:02:37.2]} 30... bxa3+ {[%clk 0:01:31.1]} 31. Kxa3 {[%clk 0:02:36]}
31... Rfxf4 {[%clk 0:01:22.5]} 32. Rg5 {[%clk 0:02:34.9]} 32... Rde4 {[%clk
0:01:17.9]} 33. c3 {[%clk 0:02:33]} 33... Rxe5 {[%clk 0:01:16.4]} 34. Nc2 {[%clk
0:02:30.8]} 34... Rf3 {[%clk 0:01:12.3]} 35. Nd4 {[%clk 0:02:27.5]} 35... Rxc3
{[%clk 0:00:57.5]} 36. Nxf5 {[%clk 0:02:26.1]} 36... Rxf5 {[%clk 0:00:52]} 37.
Rxg7+ {[%clk 0:02:24.5]} 37... Kh6 {[%clk 0:00:51.2]} 38. Rg8 {[%clk 0:02:22.3]}
38... Kh7 {[%clk 0:00:36.5]} 39. R2g7+ {[%clk 0:02:16.1]} 39... Kh6 {[%clk
0:00:35.4]} 40. Rg1 {[%clk 0:02:11]} 40... Kh7 {[%clk 0:00:29.2]} 41. R8g7+
{[%clk 0:02:05.1]} 41... Kh6 {[%clk 0:00:25.9]} 42. Rg8 {[%clk 0:02:00.4]} 42...
Kh7 {[%clk 0:00:25.1]} 43. h6 {[%clk 0:01:57.3]} 43... Rh5 {[%clk 0:00:11.9]}
44. R1g7+ {[%clk 0:01:48.9]} 44... Kxh6 {[%clk 0:00:10.6]} 45. Rxf7 {[%clk
0:01:47.6]} 45... Rhh3 {[%clk 0:00:06.1]} 46. Rf6+ {[%clk 0:01:42.3]} 46... Kh7
{[%clk 0:00:05.1]} 47. Rg2 {[%clk 0:01:31.1]} 47... Rxb3+ {[%clk 0:00:05]} 48.
Ka2 {[%clk 0:01:29.9]} 48... Ra3+ {[%clk 0:00:03.4]} 49. Kb2 {[%clk 0:01:29.1]}
49... Rhb3+ {[%clk 0:00:02.9]} 50. Kc2 {[%clk 0:01:28.3]} 50... Rh3 {[%clk
0:00:00.8]} 51. Rf7+ {[%clk 0:01:24.9]} 1-0

[Event "Live Chess"]
[Site "Chess.com"]
[Date "2023.05.21"]
[Round "-"]
[White "matt1979"]
[Black "chessfiction"]
[Result "0-1"]
[WhiteElo "1538"]
[BlackElo "2348"]
[TimeControl "300"]
[EndTime "0:51:46 PDT"]
[Termination "chessfiction won by resignation"]

1. f4 {[%clk 0:04:57.8]} 1... e5 {[%clk 0:04:58.9]} 2. e4 {[%clk 0:04:56]} 2...
exf4 {[%clk 0:04:57.8]} 3. Nf3 {[%clk 0:04:53.7]} 3... g5 {[%clk 0:04:56.5]} 4.
Bc4 {[%clk 0:04:51.8]} 4... d6 {[%clk 0:04:55]} 5. O-O {[%clk 0:04:48.6]} 5...
Bg7 {[%clk 0:04:54.1]} 6. d3 {[%clk 0:04:32.1]} 6... Nc6 {[%clk 0:04:52.8]} 7.
Nc3 {[%clk 0:04:29.6]} 7... h6 {[%clk 0:04:50.3]} 8. Bd2 {[%clk 0:04:18.8]} 8...
Bg4 {[%clk 0:04:48.9]} 9. h3 {[%clk 0:04:15.9]} 9... Bh5 {[%clk 0:04:47.7]} 10.
a3 {[%clk 0:04:07.7]} 10... Nge7 {[%clk 0:04:45]} 11. b4 {[%clk 0:03:41.7]}
11... Qd7 {[%clk 0:04:37.7]} 12. Ne2 {[%clk 0:03:32.9]} 12... Bxf3 {[%clk
0:04:35.5]} 13. gxf3 {[%clk 0:03:31.8]} 13... Bxa1 {[%clk 0:04:34.6]} 14. Qxa1
{[%clk 0:03:29.9]} 14... Ne5 {[%clk 0:04:32.9]} 15. a4 {[%clk 0:03:17.9]} 15...
Qxh3 {[%clk 0:04:29.2]} 16. Bb5+ {[%clk 0:03:14.9]} 16... c6 {[%clk 0:04:25]}
17. d4 {[%clk 0:03:12.2]} 17... Nxf3+ {[%clk 0:04:02.7]} 18. Rxf3 {[%clk
0:03:01.7]} 18... Qxf3 {[%clk 0:04:02.6]} 19. d5 {[%clk 0:02:58.1]} 19... O-O-O
{[%clk 0:03:49.9]} 20. dxc6 {[%clk 0:02:55.5]} 20... Nxc6 {[%clk 0:03:48.7]} 0-1

[Event "Live Chess"]
[Site "Chess.com"]
[Date "2023.05.21"]
[Round "-"]
[White "ranvir123"]
[Black "Tushinskiy"]
[Result "0-1"]
[WhiteElo "923"]
[BlackElo "2193"]
[TimeControl "300"]
[EndTime "0:51:47 PDT"]
[Termination "Tushinskiy won by resignation"]

1. e4 {[%clk 0:04:58.6]} 1... e5 {[%clk 0:04:58.8]} 2. Nf3 {[%clk 0:04:58.2]}
2... d6 {[%clk 0:04:58.7]} 3. d4 {[%clk 0:04:56.1]} 3... Bg4 {[%clk 0:04:58]} 4.
dxe5 {[%clk 0:04:53.4]} 4... Nd7 {[%clk 0:04:57.2]} 5. exd6 {[%clk 0:04:51.2]}
5... Bxd6 {[%clk 0:04:57.1]} 6. h3 {[%clk 0:04:50.4]} 6... Bh5 {[%clk
0:04:53.3]} 7. g4 {[%clk 0:04:48.2]} 7... Bg6 {[%clk 0:04:52.1]} 8. Nc3 {[%clk
0:04:45.3]} 8... Ngf6 {[%clk 0:04:50.5]} 9. Bb5 {[%clk 0:04:44.4]} 9... Qe7
{[%clk 0:04:48.3]} 10. Bxd7+ {[%clk 0:04:39.1]} 10... Nxd7 {[%clk 0:04:46.8]}
11. Bg5 {[%clk 0:04:33.1]} 11... f6 {[%clk 0:04:44.4]} 12. Bh4 {[%clk 0:04:32]}
12... O-O-O {[%clk 0:04:42.8]} 13. Qd4 {[%clk 0:04:27.2]} 13... Bc5 {[%clk
0:04:41]} 14. Qa4 {[%clk 0:04:15.4]} 14... Nb6 {[%clk 0:04:39.5]} 15. Qxa7
{[%clk 0:04:13.3]} 15... Bxe4 {[%clk 0:04:38.2]} 16. O-O {[%clk 0:03:59.6]}
16... Bxf3 {[%clk 0:04:36.7]} 17. Rae1 {[%clk 0:03:52]} 17... Qd6 {[%clk
0:04:34.8]} 18. Rd1 {[%clk 0:03:50]} 18... Bxd1 {[%clk 0:04:32.2]} 19. Rxd1
{[%clk 0:03:47.6]} 0-1

[Event "Live Chess"]
[Site "Chess.com"]
[Date "2023.05.21"]
[Round "-"]
[White "SiDebanks"]
[Black "f4nomore"]
[Result "0-1"]
[WhiteElo "1356"]
[BlackElo "1405"]
[TimeControl "300"]
[EndTime "0:52:11 PDT"]
[Termination "f4nomore won by checkmate"]

1. d4 {[%clk 0:04:58.2]} 1... g6 {[%clk 0:04:59.9]} 2. Nc3 {[%clk 0:04:57.2]}
2... Bg7 {[%clk 0:04:59.8]} 3. Bf4 {[%clk 0:04:56.5]} 3... d6 {[%clk 0:04:58.5]}
4. e3 {[%clk 0:04:55.7]} 4... Nf6 {[%clk 0:04:56.3]} 5. h4 {[%clk 0:04:54.6]}
5... Nh5 {[%clk 0:04:53.8]} 6. Bh2 {[%clk 0:04:36.9]} 6... O-O {[%clk
0:04:51.1]} 7. Nf3 {[%clk 0:04:35.9]} 7... Nc6 {[%clk 0:04:47.1]} 8. Be2 {[%clk
0:04:32.4]} 8... Bg4 {[%clk 0:04:44.2]} 9. Ng5 {[%clk 0:04:09.5]} 9... Bxe2
{[%clk 0:04:38.3]} 10. Qxe2 {[%clk 0:04:09.4]} 10... e5 {[%clk 0:04:29]} 11. d5
{[%clk 0:03:47.1]} 11... Ne7 {[%clk 0:04:17.3]} 12. e4 {[%clk 0:03:40.2]} 12...
c6 {[%clk 0:04:15.7]} 13. O-O-O {[%clk 0:03:12.2]} 13... cxd5 {[%clk 0:04:09.4]}
14. Nxd5 {[%clk 0:02:52.8]} 14... Nxd5 {[%clk 0:04:06.8]} 15. exd5 {[%clk
0:02:52.7]} 15... Qb6 {[%clk 0:04:05]} 16. g4 {[%clk 0:02:44.3]} 16... Nf4
{[%clk 0:04:00.5]} 17. Bxf4 {[%clk 0:02:35.3]} 17... exf4 {[%clk 0:03:59.1]} 18.
Qd2 {[%clk 0:02:25.1]} 18... Qxb2# {[%clk 0:03:56.4]} 0-1

[Event "Live Chess"]
[Site "Chess.com"]
[Date "2023.05.21"]
[Round "-"]
[White "SupremeTactician"]
[Black "Richardallis"]
[Result "1-0"]
[WhiteElo "2284"]
[BlackElo "1874"]
[TimeControl "300"]
[EndTime "0:52:19 PDT"]
[Termination "SupremeTactician won by resignation"]

1. e4 {[%clk 0:04:59.6]} 1... d5 {[%clk 0:04:56.7]} 2. exd5 {[%clk 0:04:58.9]}
2... Nf6 {[%clk 0:04:55.4]} 3. d4 {[%clk 0:04:57.2]} 3... Nxd5 {[%clk
0:04:54.1]} 4. c4 {[%clk 0:04:56.7]} 4... Nf6 {[%clk 0:04:51.9]} 5. Nc3 {[%clk
0:04:55.7]} 5... c6 {[%clk 0:04:51]} 6. Nf3 {[%clk 0:04:53.4]} 6... Bg4 {[%clk
0:04:50.2]} 7. Be3 {[%clk 0:04:51.5]} 7... e6 {[%clk 0:04:49]} 8. Be2 {[%clk
0:04:50.6]} 8... Bd6 {[%clk 0:04:47.3]} 9. h3 {[%clk 0:04:49.8]} 9... Bh5 {[%clk
0:04:45.2]} 10. O-O {[%clk 0:04:48.5]} 10... Nbd7 {[%clk 0:04:43.7]} 11. Ng5
{[%clk 0:04:42]} 11... Bg6 {[%clk 0:04:41.6]} 12. Bf3 {[%clk 0:04:37]} 12... O-O
{[%clk 0:04:36.3]} 13. Nge4 {[%clk 0:04:36.1]} 13... Be7 {[%clk 0:04:35.1]} 14.
Ng3 {[%clk 0:04:32.6]} 14... Nb6 {[%clk 0:04:28.5]} 15. b3 {[%clk 0:04:31.7]}
15... Rc8 {[%clk 0:04:24.3]} 16. Rc1 {[%clk 0:04:30]} 16... c5 {[%clk
0:04:22.9]} 17. Bxb7 {[%clk 0:04:20.6]} 17... cxd4 {[%clk 0:04:21.1]} 18. Bxd4
{[%clk 0:04:15]} 18... Rc7 {[%clk 0:04:18.6]} 19. Bxb6 {[%clk 0:04:13.4]} 19...
Qxd1 {[%clk 0:04:11.4]} 20. Rfxd1 {[%clk 0:04:11.3]} 20... Rxb7 {[%clk
0:04:10.8]} 21. Be3 {[%clk 0:04:08.9]} 21... Ba3 {[%clk 0:04:06.8]} 22. Nb5
{[%clk 0:03:58.3]} 22... Bxc1 {[%clk 0:04:04.7]} 23. Bxc1 {[%clk 0:03:57.5]}
23... a6 {[%clk 0:03:59.9]} 24. Nc3 {[%clk 0:03:51.6]} 24... Bc2 {[%clk
0:03:55.6]} 25. Rd2 {[%clk 0:03:47.4]} 25... Bg6 {[%clk 0:03:53.5]} 26. Rd6
{[%clk 0:03:43.9]} 26... Rd7 {[%clk 0:03:47.2]} 27. Rxa6 {[%clk 0:03:38.9]}
27... Rd3 {[%clk 0:03:45.5]} 28. Nce2 {[%clk 0:03:36.7]} 28... Rd1+ {[%clk
0:03:31.6]} 29. Kh2 {[%clk 0:03:35.7]} 29... Bd3 {[%clk 0:03:28.3]} 30. Bb2
{[%clk 0:03:31.4]} 30... Rd2 {[%clk 0:03:15.1]} 31. Bxf6 {[%clk 0:03:29.7]}
31... Bxe2 {[%clk 0:03:13.7]} 32. Be7 {[%clk 0:03:20.1]} 32... Re8 {[%clk
0:03:09.4]} 33. Nxe2 {[%clk 0:03:19.5]} 33... Rxe2 {[%clk 0:03:08]} 34. Bc5
{[%clk 0:03:18.1]} 34... h5 {[%clk 0:03:04.8]} 35. Be3 {[%clk 0:03:16]} 35... f5
{[%clk 0:03:02.3]} 36. b4 {[%clk 0:03:08.9]} 36... e5 {[%clk 0:03:00.6]} 37. b5
{[%clk 0:03:08.1]} 37... f4 {[%clk 0:02:59.4]} 38. Bb6 {[%clk 0:03:04.9]} 38...
Re6 {[%clk 0:02:51]} 39. c5 {[%clk 0:03:00.9]} 39... Rb2 {[%clk 0:02:49.4]} 40.
a4 {[%clk 0:02:59.9]} 40... e4 {[%clk 0:02:48.3]} 41. c6 {[%clk 0:02:58.6]}
41... e3 {[%clk 0:02:45.9]} 42. fxe3 {[%clk 0:02:58.5]} 42... fxe3 {[%clk
0:02:45.2]} 43. Bxe3 {[%clk 0:02:55]} 43... Rxe3 {[%clk 0:02:43.7]} 44. c7
{[%clk 0:02:54.2]} 44... Rc2 {[%clk 0:02:42.3]} 45. Ra8+ {[%clk 0:02:51]} 45...
Kh7 {[%clk 0:02:41]} 46. c8=Q {[%clk 0:02:46.8]} 46... Rxc8 {[%clk 0:02:40.3]}
47. Rxc8 {[%clk 0:02:46.7]} 47... Ra3 {[%clk 0:02:36.4]} 48. Ra8 {[%clk
0:02:46]} 48... Rxa4 {[%clk 0:02:35.2]} 49. Rxa4 {[%clk 0:02:44.6]} 49... h4
{[%clk 0:02:34.4]} 50. b6 {[%clk 0:02:44.5]} 50... g5 {[%clk 0:02:33]} 51. b7
{[%clk 0:02:44.4]} 51... Kh6 {[%clk 0:02:32.2]} 52. b8=Q {[%clk 0:02:43.9]}
52... Kg6 {[%clk 0:02:31]} 53. Ra6+ {[%clk 0:02:42.8]} 1-0

[Event "Live Chess"]
[Site "Chess.com"]
[Date "2023.05.21"]
[Round "-"]
[White "HoarseyHorsey"]
[Black "BJAW87"]
[Result "1-0"]
[WhiteElo "1465"]
[BlackElo "1439"]
[TimeControl "300"]
[EndTime "0:52:53 PDT"]
[Termination "HoarseyHorsey won by resignation"]

1. d4 {[%clk 0:04:58.3]} 1... Nf6 {[%clk 0:04:59]} 2. c4 {[%clk 0:04:57.3]} 2...
g6 {[%clk 0:04:58.3]} 3. f3 {[%clk 0:04:56.8]} 3... Bg7 {[%clk 0:04:57.6]} 4. e4
{[%clk 0:04:56.4]} 4... O-O {[%clk 0:04:56.6]} 5. Nc3 {[%clk 0:04:55.9]} 5... d6
{[%clk 0:04:55.3]} 6. Nge2 {[%clk 0:04:53.3]} 6... Nbd7 {[%clk 0:04:53.2]} 7.
Be3 {[%clk 0:04:51.9]} 7... c6 {[%clk 0:04:48.3]} 8. Qd2 {[%clk 0:04:50.7]} 8...
Re8 {[%clk 0:04:46]} 9. O-O-O {[%clk 0:04:49]} 9... e5 {[%clk 0:04:37.5]} 10. d5
{[%clk 0:04:46.6]} 10... c5 {[%clk 0:04:16.5]} 11. Bh6 {[%clk 0:04:35.2]} 11...
Bh8 {[%clk 0:04:14.3]} 12. Bg5 {[%clk 0:04:33.1]} 12... a6 {[%clk 0:04:09.8]}
13. h4 {[%clk 0:04:32]} 13... b5 {[%clk 0:04:08.1]} 14. h5 {[%clk 0:04:25.3]}
14... bxc4 {[%clk 0:03:55.7]} 15. hxg6 {[%clk 0:04:23.4]} 15... fxg6 {[%clk
0:03:55.6]} 16. g4 {[%clk 0:04:09]} 16... Rb8 {[%clk 0:03:48.3]} 17. Ng3 {[%clk
0:03:58.9]} 17... Nb6 {[%clk 0:03:36]} 18. Rh2 {[%clk 0:03:52.5]} 18... Bd7
{[%clk 0:03:31.1]} 19. Be2 {[%clk 0:03:50.6]} 19... Na4 {[%clk 0:03:28.6]} 20.
Nxa4 {[%clk 0:03:43.7]} 20... Bxa4 {[%clk 0:03:28.5]} 21. Rdh1 {[%clk
0:03:42.6]} 21... Re7 {[%clk 0:03:22.1]} 22. Bxc4 {[%clk 0:03:39.9]} 22... Reb7
{[%clk 0:03:18.2]} 23. b3 {[%clk 0:03:37.6]} 23... Bd7 {[%clk 0:02:54.6]} 24.
Rxh7 {[%clk 0:03:23.8]} 24... Nxh7 {[%clk 0:02:52.8]} 25. Bxd8 {[%clk
0:03:22.7]} 25... Rxd8 {[%clk 0:02:52.7]} 26. Bxa6 {[%clk 0:03:17]} 26... Rb6
{[%clk 0:02:49.6]} 27. Bc4 {[%clk 0:03:15.6]} 27... Ng5 {[%clk 0:02:44.6]} 28.
Qxg5 {[%clk 0:03:12.1]} 28... Ra8 {[%clk 0:02:38.9]} 29. Qxg6+ {[%clk
0:03:05.6]} 1-0

[Event "Live Chess"]
[Site "Chess.com"]
[Date "2023.05.21"]
[Round "-"]
[White "Salpingidis"]
[Black "Denz14"]
[Result "1-0"]
[WhiteElo "2220"]
[BlackElo "1022"]
[TimeControl "300"]
[EndTime "0:52:59 PDT"]
[Termination "Salpingidis won by resignation"]

1. d4 {[%clk 0:04:58.7]} 1... e6 {[%clk 0:04:56.3]} 2. c4 {[%clk 0:04:58.6]}
2... d5 {[%clk 0:04:54.9]} 3. Nc3 {[%clk 0:04:58.1]} 3... c6 {[%clk 0:04:54.1]}
4. e3 {[%clk 0:04:56]} 4... Bb4 {[%clk 0:04:52.3]} 5. Nf3 {[%clk 0:04:55.1]}
5... Nf6 {[%clk 0:04:50.5]} 6. Bd3 {[%clk 0:04:53.9]} 6... Ne4 {[%clk
0:04:45.5]} 7. Qc2 {[%clk 0:04:51.7]} 7... Nxc3 {[%clk 0:04:43.9]} 8. bxc3
{[%clk 0:04:51.6]} 8... Be7 {[%clk 0:04:41.5]} 9. cxd5 {[%clk 0:04:50.5]} 9...
cxd5 {[%clk 0:04:39.1]} 10. c4 {[%clk 0:04:49.9]} 10... Qc7 {[%clk 0:04:34.6]}
11. O-O {[%clk 0:04:47.1]} 11... b5 {[%clk 0:04:31]} 12. cxb5 {[%clk 0:04:41.5]}
12... Qxc2 {[%clk 0:04:29.2]} 13. Bxc2 {[%clk 0:04:41.4]} 13... Bd7 {[%clk
0:04:26.9]} 14. a4 {[%clk 0:04:40.1]} 14... O-O {[%clk 0:04:24.9]} 15. Ne5
{[%clk 0:04:38.7]} 15... Be8 {[%clk 0:04:22.5]} 16. Ba3 {[%clk 0:04:36.8]} 16...
Bxa3 {[%clk 0:04:18.7]} 17. Rxa3 {[%clk 0:04:36.7]} 17... f6 {[%clk 0:04:18]}
18. Nd3 {[%clk 0:04:33]} 18... Nd7 {[%clk 0:04:13.3]} 19. Nc5 {[%clk 0:04:31.8]}
19... Kf7 {[%clk 0:04:09.2]} 20. Bb3 {[%clk 0:04:27.8]} 20... Nb6 {[%clk
0:04:07.4]} 21. a5 {[%clk 0:04:21.7]} 21... Nc4 {[%clk 0:03:59.1]} 22. Bxc4
{[%clk 0:04:20.9]} 22... dxc4 {[%clk 0:03:57.9]} 23. Rb1 {[%clk 0:04:20.4]}
23... Rb8 {[%clk 0:03:52.6]} 24. b6 {[%clk 0:04:18.8]} 24... axb6 {[%clk
0:03:51]} 25. axb6 {[%clk 0:04:18.7]} 25... Bc6 {[%clk 0:03:41.7]} 26. Ra7+
{[%clk 0:04:17.2]} 26... Kg6 {[%clk 0:03:39.3]} 27. Nxe6 {[%clk 0:04:14.1]}
27... Rf7 {[%clk 0:03:35.5]} 28. Nf4+ {[%clk 0:04:12]} 1-0